[Event "Mitropa Cup Open 2024"]
[Site "Apolda"]
[Date "2024.02.16"]
[Round "2.11"]
[White "Carnicelli, Valerio"]
[Black "Lavrencic, Matic"]
[Result "0-1"]
[ECO "B33"]
[WhiteElo "2427"]
[BlackElo "2299"]
[Annotator "TA"]
[PlyCount "118"]
[EventDate "2024.02.15"]
[EventType "team-tourn"]
[EventCountry "GER"]
[SourceTitle "playchess.com"]
[Source "ChessBase"]
[SourceQuality "1"]
[WhiteTeam "Italy"]
[BlackTeam "Slovenia"]
[WhiteTeamCountry "ITA"]
[BlackTeamCountry "SLO"]
[TimeControl "40/5400+30:1800+30"]

{[%evp 29,118,19,23,0,0,0,0,0,0,0,0,0,0,0,0,0,6,0,0,0,0,0,0,0,0,0,0,0,0,-5,0,-5,-11,0,0,-31,-29,-57,-27,-54,-18,-27,-21,-43,-43,-68,-29,-93,-17,-29,-17,-47,-54,-46,-50,-152,-150,-145,-110,-181,-63,-62,-60,-161,-159,-277,-293,-510,-495,-552,-544,-798,-786,-933,-412,-9954,-29963,-29968,-29969,-29955,-9186,-29981,-29982,-29982,-29983,-29983,-29984,-29984,-29985,-29985,-29986]} 1. e4 {[%emt 0:00:03]} c5 {[%emt 0:00:52]} 2. Nf3 {[%emt 0:00:05]} e6 {[%emt 0:00:19]} 3. d4 {[%emt 0:00:07]} cxd4 {[%emt 0:00:23]} 4. Nxd4 {[%emt 0:00:05]} Nf6 {[%emt 0:00:07]} 5. Nc3 {[%emt 0:00:04]} Nc6 {[%emt 0:00:08]} 6. Ndb5 {[%emt 0:00:07]} d6 {[%emt 0:00:28]} 7. Bf4 {[%emt 0:00:07]} e5 {[%emt 0:00:08]} 8. Bg5 {[%emt 0:00:04]} a6 {[%emt 0:00:09]} 9. Na3 {[%emt 0:00:08]} b5 {[%emt 0:00:09]} 10. Bxf6 {[%emt 0:00:10]} gxf6 {[%emt 0:00:08]} 11. Nd5 {[%emt 0:00:07]} f5 {[%emt 0:00:09]} 12. g3 {[%emt 0:00:10]} fxe4 {[%emt 0:01:08]} 13. Bg2 {[%emt 0:00:48]} Bg7 {[%emt 0:01:29]} 14. Bxe4 {[%emt 0:02:15]} Be6 {[%emt 0:01:23]} 15. Qh5 {[%emt 0:04:06]} Rc8 {[%emt 0:00:43]} 16. O-O {[%emt 0:01:30]} Ne7 {[%emt 0:00:39]} 17. Rad1 {[%emt 0:02:16]} Nxd5 {[%emt 0:01:31]} 18. Bxd5 {[%emt 0:01:06] The position is equal.} O-O {[%emt 0:01:37]} 19. c3 {[%emt 0:06:18]} Rc5 {[%emt 0:12:52]} 20. Bxe6 {[%emt 0:07:45]} fxe6 {[%emt 0:00:36]} 21. Nc2 {[%emt 0:00:48]} Qe7 {[%emt 0:04:47]} 22. Qe2 {[%emt 0:08:27]} d5 {[%emt 0:22:49]} 23. f3 {[%emt 0:04:19]} Rc4 {[%emt 0:03:13]} 24. Ne3 {[%emt 0:04:36]} Rcc8 {[%emt 0:00:31]} 25. Ng4 {[%emt 0:06:45]} Qc5+ {[%emt 0:03:22]} 26. Kg2 {[%emt 0:13:48]} Rf5 27. Qe3 {[%emt 0:37:56]} Qxe3 {[%emt 0:08:18]} 28. Nxe3 {[%emt 0:00:00]} Rf7 29. Rf2 {[%emt 0:00:00]} a5 30. Nc2 {[%emt 0:00:00]} Rfc7 {[%cal Ob5b4] Threatening ...b4!} 31. Rdd2 {[%emt 0:00:00]} Kf7 32. h4 {[%emt 0:00:00]} Ke7 33. g4 {[%emt 0:03:00]} Kd6 {[%emt 0:10:08]} 34. Rfe2 {[%emt 0:00:00]} Rb8 {[%emt 0:02:01]} 35. a3 $1 {[%emt 0:00:00]} Rc4 {[%emt 0:01:56]} 36. Kg3 {[%emt 0:01:30]} Rf8 {[%emt 0:01:52]} 37. Rd3 {[%emt 0:00:00]} Rcf4 {[%emt 0:02:01]} 38. Rde3 {[%emt 0:00:00]} (38. Ne1 $11) 38... R4f7 {[%emt 0:08:15]} (38... h5 $1 $17 {[%cal Oe5e4] aiming for ...e4!} 39. g5 e4 40. fxe4 Rg4+ 41. Kh3 Rf1) 39. Ne1 $11 {[%emt 0:00:00]} Bh6 {[%emt 0:01:31]} 40. g5 {[%emt 0:00:00]} Bg7 {[%emt 0:00:05]} 41. Nd3 {[%emt 0:31:52]} Rf5 $1 {[%emt 0:31:10]} 42. Kg4 {[%emt 0:01:08]} (42. Nf2 $15) 42... h6 {[%emt 0:00:00]} 43. Re1 {[%emt 0:00:00]} hxg5 {[%emt 0:00:00]} 44. hxg5 {[%emt 0:00:00] [#]} (44. h5 $17) 44... Rh8 {[%emt 0:00:00]} (44... a4 $1 $19 45. R3e2 Rg8 (45... Rxf3 46. Nxe5 R3f4+ 47. Kh5 $11)) 45. f4 $15 {[%emt 0:00:00]} e4 {[%emt 0:00:00][%cal Oh8f8] ...Rhf8! is the strong threat.} 46. Nf2 {[%emt 0:00:00] [#]} ({White should play} 46. Nc1 $1 $15) 46... Rhf8 $1 $19 {[%emt 0:00:00]} 47. Nxe4+ {[%emt 0:00:00]} (47. Nh3 $17) 47... dxe4 {[%emt 0:00:00]} 48. Rxe4 {[%emt 0:00:00]} (48. Rd1+ {only move.} Kc6 (48... Rd5 $2 49. Rf1 $19) 49. Rxe4) 48... e5 {[%emt 0:00:00]} 49. fxe5+ {[%emt 0:00:00]} Bxe5 {[%emt 0:00:00]} 50. a4 {[%emt 0:00:00]} Ke6 {[%emt 0:00:14]} 51. Rd4 {[%emt 0:00:00]} Rf4+ {[%emt 0:05:37]} (51... Rf2 $142 {( -> ...Rg2+)} 52. Rxe5+ Kxe5) 52. Kh5 {[%emt 0:00:00]} (52. Rxf4 $142 Rxf4+ 53. Kh3 bxa4 (53... Rxa4 $2 54. g6 $19) 54. Kg2) 52... Kf5 {[%cal Rf8h8]} 53. Rxf4+ Bxf4 {[%emt 0:01:35][%cal Rf8h8] KRB-KR} 54. Kh6 {[%emt 0:00:00]} bxa4 {[%emt 0:01:05][%cal Of8b8]} 55. Rd1 {[%emt 0:00:24]} Rh8+ {[%emt 0:02:58] Black mates.} 56. Kg7 {[%emt 0:00:02]} Be5+ {[%emt 0:00:07]} 57. Kf7 {[%emt 0:00:03]} Rh7+ {[%emt 0:00:12]} 58. Kg8 {[%emt 0:00:43]} Rg7+ {[%emt 0:00:27]} 59. Kf8 {[%emt 0:00:02]} Ke6 {[%emt 0:00:15] Weighted Error Value: White=0.62/Black=0.21 (precise) .  Mistake:       	White=6     	Black=2      Inaccurate:     	White=5     	Black=2      OK:         	White=11    	Black=16     Best:        	---       	Black=3      Strong:       	White=1     	Black=2} 0-1

[Event "Mitropa Cup Open 2024"]
[Site "Apolda"]
[Date "2024.02.16"]
[Round "2.12"]
[White "Olenik Campa, Rudi"]
[Black "Perossa, Nicolas"]
[Result "1-0"]
[ECO "A49"]
[WhiteElo "2299"]
[BlackElo "2277"]
[Annotator "COMBH RC"]
[PlyCount "141"]
[EventDate "2024.02.15"]
[EventType "team-tourn"]
[EventCountry "GER"]
[SourceTitle "playchess.com"]
[Source "ChessBase"]
[SourceQuality "1"]
[WhiteTeam "Slovenia"]
[BlackTeam "Italy"]
[WhiteTeamCountry "SLO"]
[BlackTeamCountry "ITA"]
[TimeControl "40/5400+30:1800+30"]

1. Nf3 {[%emt 0:00:02]} Nf6 {[%emt 0:00:08]} 2. g3 {[%emt 0:00:05]} g6 {[%emt 0:00:24]} 3. Bg2 {[%emt 0:00:04]} Bg7 {[%emt 0:00:07]} 4. O-O {[%emt 0:00:06]} O-O {[%emt 0:00:06]} 5. d4 {[%emt 0:00:04]} d6 {[%emt 0:01:01]} 6. a4 {[%emt 0:01:41]} Bf5 {[%emt 0:22:32]} 7. a5 {[%emt 0:11:04]} Qc8 {[%emt 0:04:31]} 8. Re1 {[%emt 0:05:54]} c5 {[%emt 0:07:09]} 9. d5 {[%emt 0:15:48]} Na6 {[%emt 0:15:14]} 10. Nbd2 {[%emt 0:03:48]} b5 {[%emt 0:14:45]} 11. axb6 {[%emt 0:09:53]} axb6 {[%emt 0:00:13]} 12. e4 {[%emt 0:03:29]} Bh3 {[%emt 0:02:04]} 13. Bh1 {[%emt 0:09:19]} Nb4 {[%emt 0:15:51]} 14. Rxa8 Qxa8 15. e5 {[%emt 0:02:07]} dxe5 {[%emt 0:02:13]} 16. Nxe5 {[%emt 0:01:18]} Qa4 {[%emt 0:02:49]} 17. Ndc4 {[%emt 0:08:23]} Qxc2 {[%emt 0:06:30]} 18. Nxb6 {[%emt 0:00:17]} Qxd1 {[%emt 0:00:55]} 19. Rxd1 {[%emt 0:00:04]} Nfxd5 {[%emt 0:02:32]} 20. Nxd5 {[%emt 0:19:40]} Bxe5 {[%emt 0:00:02]} 21. Nxe7+ {[%emt 0:02:33]} Kg7 {[%emt 0:00:06]} 22. Be3 {[%emt 0:00:23]} c4 {[%emt 0:01:04]} 23. Bc5 {[%emt 0:02:04]} Nd3 {[%emt 0:00:58]} 24. Nc6 {[%emt 0:00:50]} Bxb2 {[%emt 0:00:38]} 25. Bxf8+ {[%emt 0:00:28]} Kxf8 {[%emt 0:00:01]} 26. Be4 {[%emt 0:01:19]} Nc5 {[%emt 0:00:50]} 27. Bc2 {[%emt 0:00:37]} Bg4 {[%emt 0:00:44]} 28. Rd5 {[%emt 0:01:38]} Ba3 {[%emt 0:00:31]} 29. Rd4 {[%emt 0:00:38]} Be6 {[%emt 0:00:24]} 30. Nd8 {[%emt 0:01:14]} c3 {[%emt 0:00:23]} 31. Nxe6+ {[%emt 0:00:09]} Nxe6 {[%emt 0:00:01]} 32. Ra4 {[%emt 0:00:51]} Bd6 {[%emt 0:01:05]} 33. Rc4 {[%emt 0:00:12]} Be5 {[%emt 0:00:04]} 34. Kf1 {[%emt 0:00:10]} Ke7 {[%emt 0:00:24]} 35. Ke2 {[%emt 0:01:03]} Nd4+ {[%emt 0:00:23]} 36. Kd1 {[%emt 0:00:35]} Ne6 {[%emt 0:00:58]} 37. f4 {[%emt 0:00:13]} Bg7 {[%emt 0:00:27]} 38. Ra4 {[%emt 0:00:20]} Kd6 {[%emt 0:00:51]} 39. Ra7 {[%emt 0:00:06]} Nc7 {[%emt 0:00:13]} 40. Bb3 {[%emt 0:00:21]} f5 {[%emt 0:00:34]} 41. Bg8 {[%emt 0:30:38]} Bd4 {[%emt 0:08:34]} 42. Ra2 {[%emt 0:00:00]} h6 {[%emt 0:01:08]} 43. Kc2 {[%emt 0:00:00]} Bf6 {[%emt 0:13:01]} 44. Kd3 {[%emt 0:00:00]} Ke7 {[%emt 0:05:40]} 45. Ra7 {[%emt 0:00:00]} Kd6 {[%emt 0:00:20]} 46. Bf7 {[%emt 0:00:00]} h5 {[%emt 0:04:26]} 47. h4 {[%emt 0:00:00]} Nb5 {[%emt 0:00:14]} 48. Ra6+ {[%emt 0:00:00]} Ke7 {[%emt 0:00:05]} 49. Bxg6 {[%emt 0:00:00]} Nd4 {[%emt 0:00:00]} 50. Bxh5 {[%emt 0:00:00]} Ne6 {[%emt 0:00:40]} 51. Rc6 {[%emt 0:00:45]} Kd7 {[%emt 0:01:28]} 52. Rc4 {[%emt 0:01:47]} Kd6 {[%emt 0:00:09]} 53. Bg6 {[%emt 0:02:07]} Nc5+ {[%emt 0:00:34]} 54. Rxc5 {[%emt 0:00:04]} Kxc5 {[%emt 0:00:03]} 55. Bxf5 {[%emt 0:00:05]} Kb4 {[%emt 0:00:56]} 56. Ke3 {[%emt 0:00:22]} Kc4 {[%emt 0:00:04]} 57. h5 {[%emt 0:00:06]} Bd4+ {[%emt 0:00:29]} 58. Kf3 {[%emt 0:00:08]} Kd5 {[%emt 0:00:03]} 59. g4 {[%emt 0:00:20]} Kd6 {[%emt 0:00:04]} 60. g5 {[%emt 0:00:13]} Ke7 {[%emt 0:00:05]} 61. Bc2 {[%emt 0:00:41]} Kf7 {[%emt 0:00:07]} 62. Ke4 {[%emt 0:00:26]} Bg7 {[%emt 0:00:34]} 63. h6 {[%emt 0:00:42]} Bf8 {[%emt 0:00:18]} 64. Kf5 {[%emt 0:00:18]} Kg8 {[%emt 0:00:10]} 65. Kf6 {[%emt 0:00:16]} Bg7+ {[%emt 0:00:12]} 66. Kf5 {[%emt 0:00:28]} Bf8 {[%emt 0:00:16]} 67. Bb1 {[%emt 0:00:49]} Kh8 {[%emt 0:02:28]} 68. Kg4 {[%emt 0:01:13]} Bd6 {[%emt 0:01:36]} 69. g6 {[%emt 0:00:10]} Be7 {[%emt 0:00:59]} 70. g7+ {[%emt 0:00:09]} Kg8 {[%emt 0:00:03] Check Result:7.25} 71. Ba2+ {[%emt 0:00:06]} 1-0

[Event "Mitropa Cup Open 2024"]
[Site "Apolda"]
[Date "2024.02.16"]
[Round "2.13"]
[White "Georgiadis, Nico"]
[Black "Girel, Joseph"]
[Result "1-0"]
[ECO "E11"]
[WhiteElo "2547"]
[BlackElo "2492"]
[Annotator "TA"]
[PlyCount "71"]
[EventDate "2024.02.15"]
[EventType "team-tourn"]
[EventCountry "GER"]
[SourceTitle "playchess.com"]
[Source "ChessBase"]
[SourceQuality "1"]
[WhiteTeam "Switzerland"]
[BlackTeam "France"]
[WhiteTeamCountry "SUI"]
[BlackTeamCountry "FRA"]
[TimeControl "40/5400+30:1800+30"]

{[%evp 12,71,13,10,36,35,39,33,48,41,54,28,14,16,14,15,21,15,25,25,23,7,4,0,42,39,34,46,56,55,53,28,77,63,83,101,100,83,87,67,68,44,52,47,89,87,128,130,136,93,160,153,134,145,249,233,299,303,916,900,1093,1058]} 1. d4 {[%emt 0:00:06]} Nf6 {[%emt 0:01:20]} 2. c4 {[%emt 0:00:05]} e6 {[%emt 0:00:16]} 3. Nf3 {[%emt 0:00:14]} d5 {[%emt 0:00:18]} 4. g3 {[%emt 0:00:06]} Bb4+ {[%emt 0:01:21]} 5. Bd2 {[%emt 0:00:07]} a5 {[%emt 0:00:12]} 6. Bg2 {[%emt 0:00:34]} O-O {[%emt 0:00:15]} 7. Qc2 {[%emt 0:00:37]} c5 {[%emt 0:00:27]} 8. cxd5 {[%emt 0:06:51]} cxd4 {[%emt 0:00:23]} 9. Nxd4 {[%emt 0:00:47]} Qb6 {[%emt 0:00:13] White is slightly better.} 10. e3 {[%emt 0:03:45]} exd5 {[%emt 0:00:16]} 11. a3 {[%emt 0:08:32]} Bxd2+ {[%emt 0:20:37]} 12. Nxd2 {[%emt 0:00:07]} Nc6 {[%emt 0:00:11]} 13. N2f3 {[%emt 0:03:20]} Bg4 {[%emt 0:04:28]} 14. O-O {[%emt 0:03:35]} Rfc8 {[%emt 0:05:56] Hoping for ...Nxd4.} 15. Qd3 {[%emt 0:04:43]} Ne4 {[%emt 0:12:40]} 16. h3 {[%emt 0:07:58]} Bxf3 {[%emt 0:06:28]} 17. Nxf3 {[%emt 0:00:44][%cal Bd4f3,Bf3e1,Be1d3][%mdl 32]} Rd8 {[%emt 0:06:36]} 18. Qc2 {[%emt 0:09:14]} h6 {[%emt 0:11:27]} 19. Rac1 {[%emt 0:01:24]} Rd6 {[%emt 0:06:31]} 20. Rfd1 {[%emt 0:03:54]} Rad8 {[%emt 0:00:05]} 21. Ne1 {[%emt 0:08:22]} Nf6 {[%emt 0:06:53]} (21... f5 $11) 22. Nd3 $16 {[%emt 0:02:59]} d4 {[%emt 0:01:06]} 23. e4 {[%emt 0:01:01] e5 would now be deadly.} Re6 {[%emt 0:03:15]} 24. Nc5 {[%emt 0:06:14]} Re7 {[%emt 0:00:48] [#]} 25. Nxb7 $1 {[%emt 0:11:17]} Qxb7 {[%emt 0:02:33]} 26. Qxc6 {[%emt 0:00:13]} Qxb2 {[%emt 0:00:27]} 27. Qc5 {[%emt 0:01:05][%csl LRa5,LRe7]} Ree8 {[%emt 0:04:46]} 28. Qxa5 {[%emt 0:02:01]} d3 {[%emt 0:00:46]} 29. Qc3 {[%emt 0:00:52]} Qe2 {[%emt 0:02:12][%cal Od3d2] aiming for ...d2!} 30. Re1 {[%emt 0:04:15]} Qa2 {[%emt 0:01:33] [#]} (30... Qh5 $142 31. Qd2 Qg5) 31. Re3 $1 {[%emt 0:02:09]} d2 {[%emt 0:00:37]} 32. Rd1 {[%emt 0:00:04]} Rb8 {[%emt 0:01:01]} (32... Re7 $16 33. e5 Ne8) 33. Qxd2 $18 {[%emt 0:00:56]} ({Don't play} 33. Rxd2 $6 Qb1+ 34. Kh2 Nxe4 35. Bxe4 (35. Qc6 Re6 $14) 35... Rxe4 $16) 33... Rb2 {[%emt 0:00:09]} 34. Qe1 {[%emt 0:00:21] Strongly threatening e5.} Reb8 $2 {[%emt 0:00:50]} (34... Rb3 35. Re2 Qxa3) 35. e5 {[%emt 0:03:14][%cal Be4e5,Be5f6][%mdl 32]} Rb1 {[%emt 0:00:18]} 36. exf6 {[%emt 0:00:32] Weighted Error Value: White=0.06 (flawless) /Black=0.23 (precise) .  Mistake:       	---       	Black=4      Inaccurate:     	White=2     	Black=3      OK:         	White=17    	Black=9      Best:        	White=2     	---        Strong:       	White=1     	---} 1-0

[Event "Mitropa Cup Open 2024"]
[Site "Apolda"]
[Date "2024.02.16"]
[Round "2.14"]
[White "Makkar, Rajat"]
[Black "Bogner, Sebastian"]
[Result "0-1"]
[ECO "E11"]
[WhiteElo "2453"]
[BlackElo "2538"]
[Annotator "TA"]
[PlyCount "94"]
[EventDate "2024.02.15"]
[EventType "team-tourn"]
[EventCountry "GER"]
[SourceTitle "playchess.com"]
[Source "ChessBase"]
[SourceQuality "1"]
[WhiteTeam "France"]
[BlackTeam "Switzerland"]
[WhiteTeamCountry "FRA"]
[BlackTeamCountry "SUI"]
[TimeControl "40/5400+30:1800+30"]

{[%evp 39,94,-175,-140,-223,-216,-213,-221,-218,-217,-217,-204,-229,-216,-231,-235,-218,-237,-217,-105,-304,-282,-316,-322,-339,-318,-751,-748,-715,-702,-29954,-29958,-29952,-29955,-12556,-9187,-29972,-29974,-29974,-29975,-29974,-29958,-29970,-10165,-29971,-29972,-29970,-29969,-29978,-29979,-29979,-29980,-29980,-29980,-29981,-29977,-29977,-29976]} 1. d4 {[%emt 0:00:09]} Nf6 {[%emt 0:00:06]} 2. c4 {[%emt 0:00:16]} e6 {[%emt 0:00:05]} 3. Nf3 {[%emt 0:00:05]} Bb4+ {[%emt 0:00:07]} 4. Bd2 {[%emt 0:00:16]} Qe7 {[%emt 0:00:10]} 5. g3 {[%emt 0:00:56]} Bxd2+ {[%emt 0:00:07]} 6. Nbxd2 {[%emt 0:02:55]} d6 {[%emt 0:00:55]} 7. Bg2 {[%emt 0:02:11]} e5 {[%emt 0:00:40]} 8. e3 {[%emt 0:08:13]} O-O {[%emt 0:06:14]} 9. O-O {[%emt 0:05:07]} Re8 {[%emt 0:06:50] E11: Bogo-Indian.} 10. e4 $146 {[%emt 0:09:38]} ({Predecessor:} 10. Rc1 h6 11. Nb1 c6 12. Nc3 Bg4 13. h3 Bh5 14. g4 Bg6 15. c5 Nbd7 16. cxd6 Qxd6 17. dxe5 Qxd1 18. Rfxd1 Nxe5 19. Nxe5 Rxe5 {½-½ Li,C (2613)-Zhou,J (2650) CHN-chT 6th China 2010 (12)}) 10... a5 {[%emt 0:09:06]} 11. d5 {[%emt 0:06:44]} Na6 {[%emt 0:00:52]} 12. Ne1 {[%emt 0:01:42]} Bg4 {[%emt 0:13:28]} 13. f3 {[%emt 0:02:29]} Bd7 {[%emt 0:00:06]} 14. Nd3 {[%emt 0:02:52]} c6 {[%emt 0:06:24]} 15. a4 {[%emt 0:18:37]} cxd5 {[%emt 0:03:43]} 16. cxd5 {[%emt 0:01:42]} b5 {[%emt 0:00:27]} 17. b3 {[%emt 0:05:06]} Rec8 {[%emt 0:01:33]} 18. f4 {[%emt 0:02:03]} Nb4 {[%emt 0:13:03]} 19. fxe5 {[%emt 0:07:14]} dxe5 {[%emt 0:00:07]} 20. Nxb4 {[%emt 0:01:52]} (20. Nf3 $17 {might work better.} Nc2 (20... Nxe4 21. Nfxe5 $11)) 20... Qxb4 {[%emt 0:02:18]} 21. Nf3 {[%emt 0:03:15]} (21. axb5 $17 {is a better defense.} Bxb5 22. Rf2) 21... Ng4 $19 {[%emt 0:05:44]} (21... Qxe4 22. Re1 Qb4 (22... Qxd5 23. Qxd5 Nxd5 24. Nxe5 $18) 23. Nxe5 $11) (21... Nxe4 22. Nxe5 Be8 23. Nc6 Qc5+ 24. Kh1 Nf2+ 25. Rxf2 Qxf2 26. axb5 $11 (26. Ne7+ Kf8 $18)) 22. Qd2 {[%emt 0:03:17]} Rc3 {[%emt 0:00:41]} (22... Qxe4 23. Rae1 (23. Ng5 $2 Qg6 $19) 23... Qg6 24. Nxe5 Qb6+ 25. Kh1 Nxe5 26. Rxe5 $11) (22... Qxb3 23. Rfb1 Qc4 24. Rc1 Qxe4 25. axb5 $17) (22... bxa4 23. Qxb4 axb4 24. bxa4 $17) 23. h3 {[%emt 0:04:36]} Rxf3 {[%emt 0:06:24]} 24. Qxb4 {[%emt 0:00:04]} Rxf1+ {[%emt 0:00:04]} 25. Bxf1 {[%emt 0:00:11]} axb4 {[%emt 0:00:05]} 26. hxg4 {[%emt 0:00:03]} bxa4 {[%emt 0:00:06]} 27. bxa4 {[%emt 0:00:06]} Rxa4 {[%emt 0:00:33]} 28. Rc1 {[%emt 0:00:59]} Ra7 {[%emt 0:09:38]} (28... b3 $19 {is more deadly.} 29. Rc7 Bxg4) 29. Bb5 $2 {[%emt 0:04:27]} (29. g5 $17) 29... Bxg4 $1 $19 {[%emt 0:00:09]} (29... Bxb5 30. Rc8+) 30. Rb1 {[%emt 0:02:59]} Rb7 {[%emt 0:02:53]} 31. Rxb4 {[%emt 0:00:48]} Kf8 {[%emt 0:02:32]} 32. Rb1 $2 {[%emt 0:00:25]} (32. Rb3) 32... Ke7 $19 {[%emt 0:01:23]} 33. Kf2 {[%emt 0:00:35]} Kd6 {[%emt 0:00:15]} (33... Bd7 34. Bd3 Rxb1 35. Bxb1 $17) 34. Bd3 {[%emt 0:00:57]} Rxb1 {[%emt 0:00:23]} 35. Bxb1 {[%emt 0:00:02]} g6 {[%emt 0:00:46]} 36. Ke3 {[%emt 0:00:21]} f5 {[%emt 0:01:31]} 37. exf5 {[%emt 0:02:28]} Bxf5 {[%emt 0:03:29]} ({Worse is} 37... Kxd5 38. fxg6 hxg6 39. Bxg6 $14) 38. Ba2 {[%emt 0:00:03]} g5 {[%emt 0:01:26]} 39. Bb3 {[%emt 0:00:31]} h6 {[%emt 0:01:51]} 40. Bc4 {[%emt 0:00:22]} Bc2 {[%emt 0:00:52]} (40... h5 $142 41. Bb5 h4 (41... Kxd5 $2 42. Be2 $19) 42. Be2 Kxd5 43. g4 Be6 44. Ba6 h3 (44... Bxg4 $2 45. Bb7+ Kc5 46. Ke4 $19) 45. Kf2 Bxg4 46. Kg3 e4 47. Kh2 e3 48. Kg3 Kd4 49. Bb7 h2 50. Kxh2 e2 51. Kg3 e1=Q+ (51... e1=R 52. Kxg4 Rg1+ 53. Kf3 $19) 52. Kxg4 Qe6+ 53. Kg3 Ke3 54. Bf3 Qf5 (54... Qh3+ {leads to mate.} 55. Kxh3 Kxf3 56. Kh2 g4 57. Kg1 Kg3 58. Kf1 Kh2 59. Kf2 g3+ 60. Ke3 g2 61. Ke4 Kg3 62. Ke5 g1=Q 63. Kd6 Qb6+ 64. Kd5 Kf4 65. Kc4 Ke4 66. Kc3 Qb5 67. Kc2 Kd4 68. Kd1 Kd3 69. Ke1 Qf5 70. Kd1 Qf1#) 55. Bd1 Qf4+ 56. Kg2 Qf2+ 57. Kh1 Qg3 58. Bh5 Kf2 59. Bg6 Qh4#) 41. Kf3 {[%emt 0:31:00]} h5 {[%emt 0:07:15]} 42. Ke3 {[%emt 0:00:00]} h4 {[%emt 0:00:22]} 43. gxh4 {[%emt 0:00:00]} gxh4 {[%emt 0:00:01]} 44. Kf3 {[%emt 0:00:00]} Bf5 {[%emt 0:00:09]} 45. Bb3 {[%emt 0:00:00]} Kc5 {[%emt 0:01:26]} 46. Kf2 {[%emt 0:00:00]} Be4 {[%emt 0:01:09]} 47. Bd1 {[%emt 0:00:00]} Bxd5 {[%emt 0:00:57]} 0-1

[Event "Mitropa Cup Open 2024"]
[Site "Apolda"]
[Date "2024.02.16"]
[Round "2.15"]
[White "Baenziger, Fabian"]
[Black "Velten, Paul"]
[Result "1/2-1/2"]
[ECO "D38"]
[WhiteElo "2414"]
[BlackElo "2470"]
[Annotator "TA"]
[PlyCount "63"]
[EventDate "2024.02.15"]
[EventType "team-tourn"]
[EventCountry "GER"]
[SourceTitle "playchess.com"]
[Source "ChessBase"]
[SourceQuality "1"]
[WhiteTeam "Switzerland"]
[BlackTeam "France"]
[WhiteTeamCountry "SUI"]
[BlackTeamCountry "FRA"]
[TimeControl "40/5400+30:1800+30"]

{[%evp 11,63,9,17,0,34,15,50,35,68,54,54,40,48,60,124,114,126,132,137,109,153,152,168,176,184,172,163,133,134,135,133,139,141,142,154,46,33,16,24,16,16,7,20,19,29,25,16,0,9,0,0,0,0,0]} 1. d4 {[%emt 0:00:04]} e6 {[%emt 0:00:46]} 2. c4 {[%emt 0:00:22]} Nf6 {[%emt 0:01:13]} 3. Nf3 {[%emt 0:00:36]} d5 {[%emt 0:01:49]} 4. Nc3 {[%emt 0:01:35]} Bb4 {[%emt 0:02:55]} 5. Qa4+ {[%emt 0:00:57]} Nc6 {[%emt 0:00:41]} 6. e3 {[%emt 0:00:14]} O-O {[%emt 0:09:00]} 7. Qc2 {[%emt 0:00:46]} h6 {[%emt 0:08:30]} 8. Bd2 {[%emt 0:02:25]} a6 {[%emt 0:11:15]} 9. a3 {[%emt 0:09:54] White is slightly better.} Bd6 {[%emt 0:17:19]} 10. c5 {[%emt 0:18:01]} Be7 {[%emt 0:00:10][%cal Oe6e5]} 11. Rd1 {[%emt 0:05:20]} Re8 {[%emt 0:05:38]} 12. Bd3 {[%emt 0:09:38]} e5 {[%emt 0:02:33]} 13. dxe5 $16 {[%emt 0:04:54] White is more active.} Ng4 {[%emt 0:00:37]} 14. Bh7+ {[%emt 0:04:31]} Kh8 {[%emt 0:01:11] [#]} 15. Bc1 $1 {[%emt 0:00:14]} Be6 {[%emt 0:03:00][%cal Og7g6]} 16. Be4 {[%emt 0:09:06][%cal Re4d5]} Qc8 {[%emt 0:15:12]} 17. Nxd5 {[%emt 0:07:37]} Ngxe5 {[%emt 0:00:21]} 18. Nxe5 {[%emt 0:01:35]} Nxe5 {[%emt 0:00:07]} 19. Nxe7 {[%emt 0:05:38]} Rxe7 {[%emt 0:00:05]} 20. O-O {[%emt 0:00:06]} f5 {[%emt 0:02:50] [#]} 21. Bd5 {[%emt 0:00:45]} Bxd5 {[%emt 0:01:02]} 22. Rxd5 {[%emt 0:00:06]} Qe6 {[%emt 0:00:11]} 23. e4 {[%emt 0:06:47]} (23. Rfd1 $16) 23... Nc6 $14 {[%emt 0:01:19]} 24. f3 {[%emt 0:04:54]} (24. Rxf5 Nd4 25. Qd3 Nxf5 26. exf5 Qf7) 24... fxe4 {[%emt 0:00:20]} 25. fxe4 {[%emt 0:01:32]} (25. Qxe4 {simplifies} Qxe4 26. fxe4 Rxe4 27. Rd7) 25... Rae8 {[%emt 0:01:00]} 26. Bd2 {[%emt 0:02:36]} Qg6 {[%emt 0:03:07]} 27. Bc3 {[%emt 0:00:26]} Rxe4 {[%emt 0:00:32]} 28. Qd3 {[%emt 0:01:04]} Kh7 {[%emt 0:00:45]} 29. h3 {[%emt 0:01:03] The position is equal.} R8e7 {[%emt 0:01:23]} 30. Rf3 {[%emt 0:00:43]} Ne5 {[%emt 0:05:04]} 31. Bxe5 {[%emt 0:00:08]} R4xe5 {[%emt 0:00:07]} 32. Qxg6+ {[%emt 0:00:42] Blacks defense is rewarded with a draw.   Weighted Error Value: White=0.13 (very precise) /Black=0.12 (very precise) .  Mistake:       	White=1     	Black=1      Inaccurate:     	---       	Black=4      OK:         	White=6     	Black=10     Best:        	White=1     	---        Strong:       	White=1     	---} 1/2-1/2